{"text_format":"1","workbook":"xlsx","n_sheets":11,"sheets":["Présentation","Part 1 (1-3)","Part 1 (2-3)","Part 1 (3-3)","Part 2 (1-2)","Part 2 (2-2)","Part 3 (1-2)","Part 3(2-2)","Points de Jury","Bilan","Listes"],"not_rendered":{"charts":0,"images":29,"macros":1,"external_links":0,"defined_names":3,"comments":0,"pivot_tables":0},"unopened":[],"bounds":{"document_bytes":16777216,"sheet_cells":100000,"rows_first":2000,"rows_last":500,"rows_between":2000,"halvings":0,"cell_chars":16384,"cell_head_chars":4096},"cells_cut":0,"cells_raw":0,"read":"whole","date_system":"1900"}

{"sheet":"Présentation","index":0,"n_rows":8,"n_cols":1,"rows_kept":8,"cut":false,"hidden":false,"merged":[[5,0,6,10],[7,0,18,10]]}
[]
[]
[]
[]
[]
["GRILLE SIAPS"]
[]
["Cette nouvelle version de la grille SIAPS est proposée par la conférence nationale des doyens de médecine et par la conférence des présidents de CNU.\n\nLe score est désormais annuel, et plafonné à 1000 points. Il est décliné sur trois thématiques :\n-       Heures d’enseignement (sur le principe d’1 point par heure d’enseignement)\n-       Responsabilités pédagogiques (le nombre de points attribué est inscrit en face de chaque ligne)\n-       Recherche et innovation en pédagogie (le nombre de points attribué est inscrit en face de chaque ligne)\n\nCe fichier Excel permet aux candidats de déclarer leurs points sur les trois thématiques, et de calculer leur score.\nIl est demandé à l’équipe facultaire de finaliser le calcul du score :\n-       En validant les points déclarés par les candidats,\n-       Et en proposant des Points de jury, entre 0 et 100 points pour chacune des trois thématiques.\n\nLe score SIAPS de l’année, d’un maximum de 1000 points, est calculé automatiquement dans le fichier Excel, par la somme des points déclarés par le candidat et des points de jury, somme qui est plafonnée à\n-       200 points maximum pour les heures d’enseignement,\n-       400 points maximum pour les responsabilités pédagogiques\n-       et 400 points maximum pour la recherche et l’innovation en pédagogie.\n\nNous attirons votre attention sur le fait que ce score a été conçu uniquement comme un outil parmi d’autres, qui pourra être utilisé par les commissions de révision des effectifs des facultés et/ou les sous-sections de CNU pour l'examen des candidatures à une nomination ou une promotion HU."]

{"sheet":"Part 1 (1-3)","index":1,"n_rows":21,"n_cols":5,"rows_kept":21,"cut":false,"hidden":false,"merged":[[1,2,1,3],[2,2,2,3],[3,2,3,4],[4,2,4,4]]}
[null,"NOUVELLE GRILLE SIAPS"]
[null,"Nom",null,null,"page 1/9"]
[null,"Prénom"]
[null,"Discipline (sous-section CNU) - Utilisez le menu déroulant"]
[null,"UFR - Utilisez le menu déroulant"]
["1. HEURES D'ENSEIGNEMENT"]
[null,null,"2023-24","2022-23","2021-22"]
["PREMIER CYCLE"]
["Nombre d'heures de cours, ED et TD PASS","Nb heures"]
["Nombre d'heures de cours, ED et TD DFGSM2","Nb heures"]
["Nombre d'heures de cours, ED et TD DFGSM3","Nb heures"]
["Nombre d'heures de cours, ED et TD Licence, Master, LAS","Nb heures"]
["Nombre d'heures de cours, ED et TD donnés dans le cadre d'un projet pédagogique auprès d'étudiants en 1er cycle","Nb heures"]
[]
["DEUXIEME CYCLE"]
["Nombre d'heures de cours, ED et TD DFASM1","Nb heures"]
["Nombre d'heures de cours, ED et TD DFASM2","Nb heures"]
["Nombre d'heures de cours, ED et TD DFASM3","Nb heures"]
["Nombre d'heures de conférences d'internat","Nb heures"]
["Nombre d'heures de cours, ED et TD donnés dans le cadre d'un projet pédagogique auprès d'étudiants en 2e cycle","Nb heures"]
["Nombre d'heures de cours, ED et TD donnés dans d'autres composantes universitaires (faculté de pharmacie ou autre) ou écoles d'ingénieur","Nb heures"]

{"sheet":"Part 1 (2-3)","index":2,"n_rows":23,"n_cols":5,"rows_kept":23,"cut":false,"hidden":false,"merged":[[3,2,3,4],[4,2,4,4],[1,2,1,3],[2,2,2,3]]}
[null,"NOUVELLE GRILLE SIAPS"]
[null,"Nom",{"$f":"'Part 1 (1-3)'!C2","v":0},null,"page 2/9"]
[null,"Prénom",{"$f":"'Part 1 (1-3)'!C3","v":0}]
[null,"Discipline (sous-section CNU)",{"$f":"'Part 1 (1-3)'!C4","v":0}]
[null,"UFR",{"$f":"'Part 1 (1-3)'!C5","v":0}]
["1. HEURES D'ENSEIGNEMENT"]
[null,null,"2023-24","2022-23","2021-22"]
["TROISIEME CYCLE, FORMATION CONTINUE"]
["Nombre d'heures de cours, ED et TD de DES local, y compris cours dispensés au sein d'un service hospitalier","Nb heures"]
["Nombre d'heures de cours, ED et TD de DES Régional","Nb heures"]
["Nombre d'heures de cours, ED et TD de DES National","Nb heures"]
["Nombre d'heures de cours, ED et TD DU-DIU, FST et options, et cours, ED et TD d'audience nationale","Nb heures"]
["Nombre d'heures d'EPU non rémunérés : compter 4 heures pour 1 EPU","Nb heures"]
["Nombre d'heures donnés dans un programme de DPC","Nb heures"]
["Nombre d'heures de cours, ED et TD donnés dans le cadre d'un projet pédagogique auprès d'étudiants en 3e cycle","Nb heures"]
["Nombre d'heures de cours, ED et TD d'audience nationale ou internationale","Nb heures"]
["Nombre d'heures de cours, ED et TD de formation des formateurs (CCA, MCUPH, PUPH, PA, moniteurs etc)","Nb heures"]
[]
["ECOLES PARAMEDICALES"]
["Nombre d'heures de cours, ED et TD Ecoles paramédicales","Nb heures"]
[]
["CREATION DE RESSOURCES PEDAGOGIQUES"]
["Nombre d'heures de cours, ED et TD postés en ligne pour une diffusion uniquement à distance:","Nb heures"]

{"sheet":"Part 1 (3-3)","index":3,"n_rows":20,"n_cols":5,"rows_kept":20,"cut":false,"hidden":false,"merged":[[1,2,1,3],[2,2,2,3],[3,2,3,4],[4,2,4,4]]}
[null,"NOUVELLE GRILLE SIAPS"]
[null,"Nom",{"$f":"'Part 1 (1-3)'!C2","v":0},null,"page 3/9"]
[null,"Prénom",{"$f":"'Part 1 (1-3)'!C3","v":0}]
[null,"Discipline (sous-section CNU)",{"$f":"'Part 1 (1-3)'!C4","v":0}]
[null,"UFR",{"$f":"'Part 1 (1-3)'!C5","v":0}]
["1. HEURES D'ENSEIGNEMENT"]
[null,null,"2023-24","2022-23","2021-22"]
["EVALUATION"]
["Nombre d'heures  en tant qu'examinateur en session d'ECOS et/ou patient simulé","Nb heures"]
["Nombre d'heures passées en tant qu'organisateur d'enseignement avec patient expert","Nb heures"]
["Nombre d'heures d'animation de sessions de simulation","Nb heures"]
["Nombre d'heures de préparation pour évaluation locale  (PASS-LAS, 1er Cycle, 2e cycle, 3e cycle, Masters, paramédical etc) (compter 1h pour 1DP ou 15 QI ou 5 TCS ou 1 station d'ECOS)","Nb heures"]
["Nombre d'heures de préparation pour session ou évaluation en Lecture critique d'article (compter 3h pour 1 session ou évalutaion de LCA)","Nb heures"]
["Nombre d'heures de préparation pour évaluation régionale \n(compter 2h pour 1DP ou 15 QI ou 5 TCS ou 1 station d'ECOS)","Nb heures"]
["Nombre d'heures de préparation pour évaluation nationale \n(compter 3h pour 1DP ou 15 QI ou 5 TCS ou 1 station d'ECOS)","Nb heures"]
["Nombre d'heures de correction d'épreuves rédactionnelles (1 heure pour 20 copies)","Nb heures"]
["Nombre d'heures de participations à un jury (jury de fin d'année, jury de thèse, jury de master, jury de DES/FST/DESC, Jury PASS-LAS","Nb heures"]
["Nombre d'heures de post-traitement d'épreuves","Nb heures"]
["Nombre d'heures passées en ligne sur des forums pédagogiques avec les étudiants","Nb heures"]
["Nombre d'heures passées en groupe d'accueil des étudiants en difficulté","Nb heures"]

{"sheet":"Part 2 (1-2)","index":4,"n_rows":27,"n_cols":14,"rows_kept":27,"cut":false,"hidden":false,"merged":[[6,5,7,7],[6,8,7,10],[6,11,7,13],[1,2,1,3],[2,2,2,3],[3,2,3,4],[4,2,4,4]]}
[null,"NOUVELLE GRILLE SIAPS"]
[null,"Nom",{"$f":"'Part 1 (1-3)'!C2","v":0},null,"page 4/9"]
[null,"Prénom",{"$f":"'Part 1 (1-3)'!C3","v":0}]
[null,"Discipline (sous-section CNU)",{"$f":"'Part 1 (1-3)'!C4","v":0}]
[null,"UFR",{"$f":"'Part 1 (1-3)'!C5","v":0}]
["2. RESPONSABILITES PEDAGOGIQUES"]
[null,null,"2023-24","2022-23","2021-22","2021-2022",null,null,"2020-2021",null,null,"2019-2020"]
["RESPONSABILITES PEDAGOGIQUES"]
["Doyen, direction d'UFR, vice-doyen chargé de la pédagogie",100,null,null,null,false,{"$f":"F9","v":false},{"$f":"IF(G9=TRUE,B9,0)","v":0},false,{"$f":"I9","v":false},{"$f":"IF(J9=TRUE,B9,0)","v":0},false,{"$f":"L9","v":false},{"$f":"IF(M9=TRUE,B9,0)","v":0}]
["Direction d'un département de pédagogie médicale",80,null,null,null,false,false,{"$f":"IF(G10=TRUE,B10,0)","v":0},false,false,{"$f":"IF(J10=TRUE,B10,0)","v":0},false,false,{"$f":"IF(M10=TRUE,B10,0)","v":0}]
["Direction d'un centre de simulation",80,null,null,null,false,false,0,false,false,0,false,false,0]
["Direction d'une école paramédicale",80,null,null,null,false,false,0,false,false,0,false,false,0]
["Responsable de cycle UFR ou responsable PASS-LAS",60,null,null,null,false,false,0,false,false,0,false,false,0]
["Responsable de mention de licence ou de master",60,null,null,null,false,false,0,false,false,0,false,false,0]
[]
["Responsable d'année UFR",40,null,null,null,false,{"$f":"F16","v":false},{"$f":"IF(G16=TRUE,B16,0)","v":0},false,{"$f":"I16","v":false},{"$f":"IF(J16=TRUE,B16,0)","v":0},false,{"$f":"L16","v":false},{"$f":"IF(M16=TRUE,B16,0)","v":0}]
["Responsable d'UE UFR, Licence ou Master",40,null,null,null,false,false,{"$f":"IF(G17=TRUE,B17,0)","v":0},false,false,{"$f":"IF(J17=TRUE,B17,0)","v":0},false,false,{"$f":"IF(M17=TRUE,B17,0)","v":0}]
["Responsable d'UE d'école paramédicale",40,null,null,null,false,false,0,false,false,0,false,false,0]
["Chargé de mission UFR en pédagogie médicale",40,null,null,null,false,false,0,false,false,0,false,false,0]
["Membre d'une commission pédagogique facultaire",40,null,null,null,false,false,0,false,false,0,false,false,0]
[]
["Animation d'un groupe de travail local en pédagogie médicale",40,null,null,null,false,{"$f":"F22","v":false},{"$f":"IF(G22=TRUE,B22,0)","v":0},false,{"$f":"I22","v":false},{"$f":"IF(J22=TRUE,B22,0)","v":0},false,{"$f":"L22","v":false},{"$f":"IF(M22=TRUE,B22,0)","v":0}]
["Participation à un groupe de travail local en pédagogie médicale",20,null,null,null,false,false,{"$f":"IF(G23=TRUE,B23,0)","v":0},false,false,{"$f":"IF(J23=TRUE,B23,0)","v":0},false,false,{"$f":"IF(M23=TRUE,B23,0)","v":0}]
["Animation d'un groupe de travail régional en pédagogie médicale",60,null,null,null,false,false,0,false,false,0,false,false,0]
["Participation à un groupe de travail régional en pédagogie médicale",30,null,null,null,false,false,0,false,false,0,false,false,0]
["Animation d'un groupe de travail national en pédagogie médicale",80,null,null,null,false,false,0,false,false,0,false,false,0]
["Participation à un groupe de travail national en pédagogie médicale",40,null,null,null,false,false,0,false,false,0,false,false,0]

{"sheet":"Part 2 (2-2)","index":5,"n_rows":268,"n_cols":14,"rows_kept":268,"cut":false,"hidden":false,"merged":[[6,5,7,7],[6,11,7,13],[225,2,225,4],[226,2,226,4],[248,2,248,3],[191,2,191,4],[189,2,189,3],[190,2,190,4],[249,2,249,3],[250,2,250,4],[251,2,251,4],[204,2,204,3],[205,2,205,3],[206,2,206,4],[207,2,207,4],[223,2,223,3],[224,2,224,3],[1,2,1,3],[2,2,2,3],[3,2,3,4],[4,2,4,4],[188,2,188,3]]}
[null,"NOUVELLE GRILLE SIAPS"]
[null,"Nom",{"$f":"'Part 1 (1-3)'!C2","v":0},null,"page 5/9"]
[null,"Prénom",{"$f":"'Part 1 (1-3)'!C3","v":0}]
[null,"Discipline (sous-section CNU)",{"$f":"'Part 1 (1-3)'!C4","v":0}]
[null,"UFR",{"$f":"'Part 1 (1-3)'!C5","v":0}]
["2. RESPONSABILITES PEDAGOGIQUES"]
[null,null,"2023-24","2022-23","2021-22","2021-22",null,null,"2020-21",null,null,"2019-20"]
["RESPONSABILITES PEDAGOGIQUES"]
["Président, vice-président ou responsable pédagogique de collège national de spécialité",100,null,null,null,false,{"$f":"F9","v":false},{"$f":"IF(G9=TRUE,B9,0)","v":0},false,{"$f":"I9","v":false},{"$f":"IF(J9=TRUE,B9,0)","v":0},false,{"$f":"L9","v":false},{"$f":"IF(M9=TRUE,B9,0)","v":0}]
["Chargé de mission national en pédagogie médicale: Patrouilleur LISA, Référentiels de compétences, …",80,null,null,null,false,false,{"$f":"IF(G10=TRUE,B10,0)","v":0},false,false,{"$f":"IF(J10=TRUE,B10,0)","v":0},false,false,{"$f":"IF(M10=TRUE,B10,0)","v":0}]
["Coordonnateur d'un ouvrage de référence en pédagogie médicale (référentiels de collèges…)",80,null,null,null,false,false,0,false,false,0,false,false,0]
["Coordonnateur d'un programme de formation ou d'évaluation annuel d'audience nationale ou internationale",80,null,null,null,false,false,0,false,false,0,false,false,0]
["Membre d'une commission ou d'un jury national (CNCI, PH, VAE…)",40,null,null,null,false,false,0,false,false,0,false,false,0]
[]
["Coordonnateur national d'option ou de FST",80,null,null,null,false,false,0,false,false,0,false,false,0]
["Coordonnateur régional  de DES ou de FST",80,null,null,null,false,false,0,false,false,0,false,false,0]
["Coordonnateur local de DES ou de FST",40,null,null,null,false,false,0,false,false,0,false,false,0]
["Responsable d'un atelier de simulation avec évaluation",40,null,null,null,false,false,0,false,false,0,false,false,0]
[]
["Responsable de DIU ou de formation à rayonnement national",60,null,null,null,false,false,0,false,false,0,false,false,0]
["Responsable de DU ou de formation locale",40,null,null,null,false,false,0,false,false,0,false,false,0]
[]
["Coordonnateur de cours, ED et TD d'audience internationale",60,null,null,null,false,false,0,false,false,0,false,false,0]
[]
[]
[]
[]
[]
[]
[]
[]
[]
[]
[]
[]
[]
[]
[]
[]
[]
[]
[]
[]
[]
[]
[]
[]
[]
[]
[]
[]
[]
[]
[]
[]
[]
[]
[]
[]
[]
[]
[]
[]
[]
[]
[]
[]
[]
[]
[]
[]
[]
[]
[]
[]
[]
[]
[]
[]
[]
[]
[]
[]
[]
[]
[]
[]
[]
[]
[]
[]
[]
[]
[]
[]
[]
[]
[]
[]
[]
[]
[]
[]
[]
[]
[]
[]
[]
[]
[]
[]
[]
[]
[]
[]
[]
[]
[]
[]
[]
[]
[]
[]
[]
[]
[]
[]
[]
[]
[]
[]
[]
[]
[]
[]
[]
[]
[]
[]
[]
[]
[]
[]
[]
[]
[]
[]
[]
[]
[]
[]
[]
[]
[]
[]
[]
[]
[]
[]
[]
[]
[]
[]
[]
[]
[]
[]
[]
[]
[]
[]
[]
[]
[]
[]
[]
[]
[]
[]
[]
[]
[]
[]
[]
[]
[]
[]
[]
["NOUVELLE GRILLE SIAPS ","Nom",{"$f":"#REF!","v":{"$error":"#REF!"}},null,"page 6/9"]
[null,"Prénom",{"$f":"#REF!","v":{"$error":"#REF!"}}]
[null,"Discipline (sous-section CNU)",{"$f":"#REF!","v":{"$error":"#REF!"}}]
[null,"UFR",{"$f":"#REF!","v":{"$error":"#REF!"}}]
["3. RECHERCHE ET INNOVATION EN PEDAGOGIE MEDICALE"]
[null,null,"2021-22","2020-21","2019-20"]
["PRODUCTION SCIENTIFIQUE EN PEDAGOGIE"]
["Publications en pédagogie médicale d'audience internationale (Compter 60 points pour chaque article publié)"]
["Publications en pédagogie médicale d'audience nationale (Compter 40 points pour chaque article publié)"]
["Nombre de chapitres de livres de référence (référentiels de collège) (Compter 40 points pour chaque chapitre publié)"]
["Communications en pédagogie médicale d'audience internationale\n(Compter 40 points pour chaque communication ou poster)"]
["Communications en pédagogie médicale d'audience nationale\n(Compter 20 points pour chaque communication ou poster)"]
["Rédaction d'un mémoire de pédagogie (Master, DU, DIU, Préceptorat)",100]
["Encadrement d'un mémoire de pédagogie (Master, DU, DIU, Préceptorat)",20]
["Mobilité pour pédagogie médicale: compter 10 points par mois de mobilité"]
[]
["NOUVELLE GRILLE SIAPS ","Nom",{"$f":"#REF!","v":{"$error":"#REF!"}},null,"page 7/9"]
[null,"Prénom",{"$f":"#REF!","v":{"$error":"#REF!"}}]
[null,"Discipline (sous-section CNU)",{"$f":"#REF!","v":{"$error":"#REF!"}}]
[null,"UFR",{"$f":"#REF!","v":{"$error":"#REF!"}}]
["3. RECHERCHE ET INNOVATION EN PEDAGOGIE MEDICALE"]
[null,null,"2021-22","2020-21","2019-20"]
["INNOVATIONS PEDAGOGIQUES"]
["Obtention d'un financement pour un projet pédagogique de plus de 50.000 euros",100]
["Obtention d'un financement pour un projet pédagogique de moins de 50.000 euros",80]
["Obtention d'un financement pour un projet pédagogique de moins de 5.000 euros",40]
[]
["création ou animation d'un programme d'enseignement innovant à l'échelle d'une UFR",100]
["création ou animation d'un programme d'enseignement innovant à l'échelle d'une filière ",80]
["création ou animation d'un programme d'enseignement innovant à l'échelle d'une UE",60]
[]
["création ou animation d'un programme d'enseignement innovant à l'échelle nationale d'une spécialité",100]
["création ou animation d'un programme d'enseignement innovant à l'échelle régionale d'une spécialité",80]
["création ou animation d'un programme d'enseignement innovant à l'échelle locale d'une spécialité",60]
[]
["NOUVELLE GRILLE SIAPS ","Nom",{"$f":"#REF!","v":{"$error":"#REF!"}},null,"page 8/9"]
[null,"Prénom",{"$f":"#REF!","v":{"$error":"#REF!"}}]
[null,"Discipline (sous-section CNU)",{"$f":"#REF!","v":{"$error":"#REF!"}}]
[null,"UFR",{"$f":"#REF!","v":{"$error":"#REF!"}}]
["POINTS DE JURY: HEURES D'ENSEIGNEMENT",null,"2021-22","2020-21","2019-20"]
["Cet enseignant produit des enseignements de qualité exceptionnelle",100]
["Cet enseignant fait partie des meilleurs enseignants de l'institution",80]
["Cet enseignant est remarqué pour la qualité de ses enseignements",60]
["Cet enseignant est apprécié par certains étudiants pour la qualité de ses enseignements",40]
["Cet enseignant donne globalement satisfaction pour la qualité de ses enseignements",20]
["Pas de points de jury",0]
["POINTS DE JURY: RESPONSABILITES PEDAGOGIQUES"]
["Une grande partie de l'action pédagogique de l'institution repose sur cet enseignant",100]
["Cet enseignant a un engagement déterminant pour l'institution",80]
["Cet enseignement prend des initiatives significatives pour l'institution",60]
["Cet enseignant a un engagement qui va au-delà de ses fonctions statutaires",40]
["Cet enseignant donne satisfaction dans ses fonctions statutaires",20]
["Pas de points de jury",0]
["POINTS DE JURY: INNOVATIONS PEDAGOGIQUES"]
["Cet enseignant a un engagement exceptionnel pour l'institution en matière d'innovation et/ou de recherche en pédagogie",100]
["Cet enseignant a un engagement déterminant pour l'institution en matière d'innovation et/ou de recherche en pédagogie",80]
["Cet enseignant prend des initiatives intéressantes en matière d'innovation et/ou de recherche en pédagogie",60]
["Cet enseignant est un bon relai auprès de ses collègues en matière d'innovation et/ou de recherche en pédagogie médicale",40]
["Cet enseignant a su s'approprier des programmes d'innovation et/ou de recherche en pédagogie portés par l'institution",20]
["Pas de points de jury",0]
["NOUVELLE GRILLE SIAPS ","Nom",{"$f":"#REF!","v":{"$error":"#REF!"}},null,"page 9/9"]
[null,"Prénom",{"$f":"#REF!","v":{"$error":"#REF!"}}]
[null,"Discipline (sous-section CNU)",{"$f":"#REF!","v":{"$error":"#REF!"}}]
[null,"UFR",{"$f":"#REF!","v":{"$error":"#REF!"}}]
[]
[null,null,"2021-22","2020-21","2019-20"]
[]
["TOTAL HEURES D'ENSEIGNEMENT",null,{"$f":"SUM(#REF!)+SUM(#REF!)+SUM(#REF!)","v":{"$error":"#REF!"}},{"$f":"SUM(#REF!)+SUM(#REF!)+SUM(#REF!)","v":{"$error":"#REF!"}},{"$f":"SUM(#REF!)+SUM(#REF!)+SUM(#REF!)","v":{"$error":"#REF!"}}]
["Points de jury heures d'enseignement",null,{"$f":"SUM(C229:C234)","v":0},{"$f":"SUM(D229:D234)","v":0},{"$f":"SUM(E229:E234)","v":0}]
["Total retenu heures d'enseignement (Max = 200)",null,{"$f":"IF((C256+C257)<200,(C256+C257),200)","v":{"$error":"#REF!"}},{"$f":"IF((D256+D257)<200,(D256+D257),200)","v":{"$error":"#REF!"}},{"$error":"#REF!"}]
[]
["TOTAL RESPONSABILITES PEDAGOGIQUES",null,{"$f":"SUM(#REF!)+SUM(C9:C23)","v":{"$error":"#REF!"}},{"$f":"SUM(#REF!)+SUM(D9:D23)","v":{"$error":"#REF!"}},{"$f":"SUM(#REF!)+SUM(E9:E23)","v":{"$error":"#REF!"}}]
["Points de jury Responsabilités pédagogiques",null,{"$f":"SUM(C236:C241)","v":0},{"$f":"SUM(D236:D241)","v":0},{"$f":"SUM(E236:E241)","v":0}]
["Total retenu Responsabilités pédagogiques (Max = 400)",null,{"$f":"IF((C260+C261)<400,(C260+C261),400)","v":{"$error":"#REF!"}},{"$f":"IF((D260+D261)<400,(D260+D261),400)","v":{"$error":"#REF!"}},{"$error":"#REF!"}]
[]
["TOTAL INNOVATIONS PEDAGOGIQUES",null,{"$f":"SUM(C196:C203)+SUM(C212:C222)","v":0},{"$f":"SUM(D196:D203)+SUM(D212:D222)","v":0},{"$f":"SUM(E196:E203)+SUM(E212:E222)","v":0}]
["Points de jury Innovations pédagogiques",null,{"$f":"SUM(C243:C248)","v":0},{"$f":"SUM(D243:D248)","v":0},{"$f":"SUM(E243:E248)","v":0}]
["Total retenu Innovations pédagogiques (Max = 400)",null,{"$f":"IF((C264+C265)<400,(C264+C265),400)","v":0},{"$f":"IF((D264+D265)<400,(D264+D265),400)","v":0},0]
[]
["SCORE SIAPS RETENU (Max = 1000)",null,{"$f":"C266+C262+C258","v":{"$error":"#REF!"}},{"$f":"D266+D262+D258","v":{"$error":"#REF!"}},{"$error":"#REF!"}]

{"sheet":"Part 3 (1-2)","index":6,"n_rows":16,"n_cols":14,"rows_kept":16,"cut":false,"hidden":false,"merged":[[6,5,7,7],[6,8,7,10],[6,11,7,13],[1,2,1,3],[2,2,2,3],[3,2,3,4],[4,2,4,4]]}
[null,"NOUVELLE GRILLE SIAPS"]
[null,"Nom",{"$f":"'Part 1 (1-3)'!C2","v":0},null,"page 6/9"]
[null,"Prénom",{"$f":"'Part 1 (1-3)'!C3","v":0}]
[null,"Discipline (sous-section CNU)",{"$f":"'Part 1 (1-3)'!C4","v":0}]
[null,"UFR",{"$f":"'Part 1 (1-3)'!C5","v":0}]
["3. RECHERCHE ET INNOVATION EN PEDAGOGIE MEDICALE"]
[null,null,"2023-24","2022-23","2021-22","2021-2022",null,null,"2020-2021",null,null,"2019-2020"]
["PRODUCTION SCIENTIFIQUE EN PEDAGOGIE"]
["Publications en pédagogie médicale d'audience internationale (Compter 60 points pour chaque article publié)"]
["Publications en pédagogie médicale d'audience nationale (Compter 40 points pour chaque article publié)"]
["Nombre de chapitres de livres de référence (référentiels de collège) (Compter 40 points pour chaque chapitre publié)"]
["Communications en pédagogie médicale d'audience internationale\n(Compter 40 points pour chaque communication ou poster)"]
["Communications en pédagogie médicale d'audience nationale\n(Compter 20 points pour chaque communication ou poster)"]
["Rédaction d'un mémoire de pédagogie (Master, DU, DIU, Préceptorat)",100,null,null,null,false,{"$f":"F14","v":false},{"$f":"IF(G14=TRUE,B14,0)","v":0},false,{"$f":"I14","v":false},{"$f":"IF(J14=TRUE,B14,0)","v":0},false,{"$f":"L14","v":false},{"$f":"IF(M14=TRUE,B14,0)","v":0}]
["Encadrement d'un mémoire de pédagogie (Master, DU, DIU, Préceptorat)",20,null,null,null,false,false,{"$f":"IF(G15=TRUE,B15,0)","v":0},false,false,{"$f":"IF(J15=TRUE,B15,0)","v":0},false,false,{"$f":"IF(M15=TRUE,B15,0)","v":0}]
["Mobilité pour pédagogie médicale: compter 10 points par mois de mobilité"]

{"sheet":"Part 3(2-2)","index":7,"n_rows":19,"n_cols":14,"rows_kept":19,"cut":false,"hidden":false,"merged":[[1,2,1,3],[2,2,2,3],[3,2,3,4],[4,2,4,4]]}
[null,"NOUVELLE GRILLE SIAPS"]
[null,"Nom",{"$f":"'Part 1 (1-3)'!C2","v":0},null,"page 7/9"]
[null,"Prénom",{"$f":"'Part 1 (1-3)'!C3","v":0}]
[null,"Discipline (sous-section CNU)",{"$f":"'Part 1 (1-3)'!C4","v":0}]
[null,"UFR",{"$f":"'Part 1 (1-3)'!C5","v":0}]
["3. RECHERCHE ET INNOVATION EN PEDAGOGIE MEDICALE"]
[null,null,"2023-24","2022-23","2021-22"]
["INNOVATIONS PEDAGOGIQUES"]
["Obtention d'un financement pour un projet pédagogique de plus de 50.000 euros",100,null,null,null,false,{"$f":"F9","v":false},{"$f":"IF(G9=TRUE,B9,0)","v":0},false,{"$f":"I9","v":false},{"$f":"IF(J9=TRUE,B9,0)","v":0},false,{"$f":"L9","v":false},{"$f":"IF(M9=TRUE,B9,0)","v":0}]
["Obtention d'un financement pour un projet pédagogique de moins de 50.000 euros",80,null,null,null,false,false,{"$f":"IF(G10=TRUE,B10,0)","v":0},false,false,{"$f":"IF(J10=TRUE,B10,0)","v":0},false,false,{"$f":"IF(M10=TRUE,B10,0)","v":0}]
["Obtention d'un financement pour un projet pédagogique de moins de 5.000 euros",40,null,null,null,false,false,0,false,false,0,false,false,0]
[]
["Création ou animation d'un programme d'enseignement innovant à l'échelle d'une UFR",100,null,null,null,false,false,0,false,false,0,false,false,0]
["Création ou animation d'un programme d'enseignement innovant à l'échelle d'une filière ",80,null,null,null,false,false,0,false,false,0,false,false,0]
["Création ou animation d'un programme d'enseignement innovant à l'échelle d'une UE",60,null,null,null,false,false,0,false,false,0,false,false,0]
[]
["Création ou animation d'un programme d'enseignement innovant à l'échelle nationale d'une spécialité",100,null,null,null,false,false,0,false,false,0,false,false,0]
["Création ou animation d'un programme d'enseignement innovant à l'échelle régionale d'une spécialité",80,null,null,null,false,false,0,false,false,0,false,false,0]
["Création ou animation d'un programme d'enseignement innovant à l'échelle locale d'une spécialité",60,null,null,null,false,false,0,false,false,0,false,false,0]

{"sheet":"Points de Jury","index":8,"n_rows":26,"n_cols":14,"rows_kept":26,"cut":false,"hidden":false,"merged":[[3,2,3,4],[4,2,4,4],[1,2,1,3],[2,2,2,3]]}
[null,"NOUVELLE GRILLE SIAPS"]
[null,"Nom",{"$f":"'Part 1 (1-3)'!C2","v":0},null,"page 8/9"]
[null,"Prénom",{"$f":"'Part 1 (1-3)'!C3","v":0}]
[null,"Discipline (sous-section CNU)",{"$f":"'Part 1 (1-3)'!C4","v":0}]
[null,"UFR",{"$f":"'Part 1 (1-3)'!C5","v":0}]
["POINTS DE JURY: HEURES D'ENSEIGNEMENT",null,"2023-24","2022-23","2021-22"]
["Cet enseignant produit des enseignements de qualité exceptionnelle",100,null,null,null,false,{"$f":"F7","v":false},{"$f":"IF(G7=TRUE,B7,0)","v":0},false,{"$f":"I7","v":false},{"$f":"IF(J7=TRUE,B7,0)","v":0},false,{"$f":"L7","v":false},{"$f":"IF(M7=TRUE,B7,0)","v":0}]
["Cet enseignant fait partie des meilleurs enseignants de l'institution",80,null,null,null,false,false,{"$f":"IF(G8=TRUE,B8,0)","v":0},false,false,{"$f":"IF(J8=TRUE,B8,0)","v":0},false,false,{"$f":"IF(M8=TRUE,B8,0)","v":0}]
["Cet enseignant est remarqué pour la qualité de ses enseignements",60,null,null,null,false,false,0,false,false,0,false,false,0]
["Cet enseignant est apprécié par certains étudiants pour la qualité de ses enseignements",40,null,null,null,false,false,0,false,false,0,false,false,0]
["Cet enseignant donne globalement satisfaction pour la qualité de ses enseignements",20,null,null,null,false,false,0,false,false,0,false,false,0]
["Pas de points de jury",0,null,null,null,false,false,0,false,false,0,false,false,0]
["POINTS DE JURY: RESPONSABILITES PEDAGOGIQUES"]
["Une grande partie de l'action pédagogique de l'institution repose sur cet enseignant",100,null,null,null,false,false,0,false,false,0,false,false,0]
["Cet enseignant a un engagement déterminant pour l'institution",80,null,null,null,false,false,0,false,false,0,false,false,0]
["Cet enseignement prend des initiatives significatives pour l'institution",60,null,null,null,false,false,0,false,false,0,false,false,0]
["Cet enseignant a un engagement qui va au-delà de ses fonctions statutaires",40,null,null,null,false,false,0,false,false,0,false,false,0]
["Cet enseignant donne satisfaction dans ses fonctions statutaires",20,null,null,null,false,false,0,false,false,0,false,false,0]
["Pas de points de jury",0,null,null,null,false,false,0,false,false,0,false,false,0]
["POINTS DE JURY: INNOVATIONS PEDAGOGIQUES"]
["Cet enseignant a un engagement exceptionnel pour l'institution en matière d'innovation et/ou de recherche en pédagogie",100,null,null,null,false,false,0,false,false,0,false,false,0]
["Cet enseignant a un engagement déterminant pour l'institution en matière d'innovation et/ou de recherche en pédagogie",80,null,null,null,false,false,0,false,false,0,false,false,0]
["Cet enseignant prend des initiatives intéressantes en matière d'innovation et/ou de recherche en pédagogie",60,null,null,null,false,false,0,false,false,0,false,false,0]
["Cet enseignant est un bon relai auprès de ses collègues en matière d'innovation et/ou de recherche en pédagogie médicale",40,null,null,null,false,false,0,false,false,0,false,false,0]
["Cet enseignant a su s'approprier des programmes d'innovation et/ou de recherche en pédagogie portés par l'institution",20,null,null,null,false,false,0,false,false,0,false,false,0]
["Pas de points de jury",0,null,null,null,false,false,0,false,false,0,false,false,0]

{"sheet":"Bilan","index":9,"n_rows":24,"n_cols":5,"rows_kept":24,"cut":false,"hidden":false,"merged":[[1,2,1,3],[2,2,2,3],[3,2,3,4],[4,2,4,4],[23,0,27,0]]}
[null,"NOUVELLE GRILLE SIAPS"]
[null,"Nom",{"$f":"'Part 1 (1-3)'!C2","v":0},null,"page 9/9"]
[null,"Prénom",{"$f":"'Part 1 (1-3)'!C3","v":0}]
[null,"Discipline (sous-section CNU)",{"$f":"'Part 1 (1-3)'!C4","v":0}]
[null,"UFR",{"$f":"'Part 1 (1-3)'!C5","v":0}]
[]
[null,null,"2023-24","2022-23","2021-22"]
[]
["TOTAL HEURES D'ENSEIGNEMENT",null,{"$f":"SUM('Part 1 (1-3)'!C9:C21)+SUM('Part 1 (2-3)'!C9:C23)+SUM('Part 1 (3-3)'!C9:C20)","v":0},{"$f":"SUM('Part 1 (1-3)'!D9:D21)+SUM('Part 1 (2-3)'!D9:D23)+SUM('Part 1 (3-3)'!D9:D20)","v":0},{"$f":"SUM('Part 1 (1-3)'!E9:E21)+SUM('Part 1 (2-3)'!E9:E23)+SUM('Part 1 (3-3)'!E9:E20)","v":0}]
["Points de jury heures d'enseignement",null,{"$f":"SUM('Points de Jury'!H7:H12)","v":0},{"$f":"SUM('Points de Jury'!K7:K12)","v":0},{"$f":"SUM('Points de Jury'!N7:N12)","v":0}]
["Total retenu heures d'enseignement (Max = 200)",null,{"$f":"IF((C9+C10)<200,(C9+C10),200)","v":0},{"$f":"IF((D9+D10)<200,(D9+D10),200)","v":0},0]
[]
["TOTAL RESPONSABILITES PEDAGOGIQUES",null,{"$f":"SUM('Part 2 (1-2)'!H9:H27)+SUM('Part 2 (2-2)'!H9:H23)","v":0},{"$f":"SUM('Part 2 (1-2)'!K9:K27)+SUM('Part 2 (2-2)'!K9:K23)","v":0},{"$f":"SUM('Part 2 (1-2)'!N9:N27)+SUM('Part 2 (2-2)'!N9:N23)","v":0}]
["Points de jury Responsabilités pédagogiques",null,{"$f":"SUM('Points de Jury'!H14:H19)","v":0},{"$f":"SUM('Points de Jury'!K14:K19)","v":0},{"$f":"SUM('Points de Jury'!N14:N19)","v":0}]
["Total retenu Responsabilités pédagogiques (Max = 400)",null,{"$f":"IF((C13+C14)<400,(C13+C14),400)","v":0},{"$f":"IF((D13+D14)<400,(D13+D14),400)","v":0},{"$f":"IF((E13+E14)<400,(E13+E14),400)","v":0}]
[]
["TOTAL INNOVATIONS PEDAGOGIQUES",null,{"$f":"SUM('Part 3 (1-2)'!C9:C13)+SUM('Part 3 (1-2)'!C16)+SUM('Part 3 (1-2)'!H14:H15)+SUM('Part 3(2-2)'!H9:H19)","v":0},{"$f":"SUM('Part 3 (1-2)'!D9:D13)+SUM('Part 3 (1-2)'!D16)+SUM('Part 3 (1-2)'!K14:K15)+SUM('Part 3(2-2)'!K9:K19)","v":0},{"$f":"SUM('Part 3 (1-2)'!E9:E13)+SUM('Part 3 (1-2)'!E16)+SUM('Part 3 (1-2)'!N14:N15)+SUM('Part 3(2-2)'!N9:N19)","v":0}]
["Points de jury Innovations pédagogiques",null,{"$f":"SUM('Points de Jury'!H21:H26)","v":0},{"$f":"SUM('Points de Jury'!K21:K26)","v":0},{"$f":"SUM('Points de Jury'!N21:N26)","v":0}]
["Total retenu Innovations pédagogiques (Max = 400)",null,{"$f":"IF((C17+C18)<400,(C17+C18),400)","v":0},{"$f":"IF((D17+D18)<400,(D17+D18),400)","v":0},0]
[]
["SCORE SIAPS RETENU (Max = 1000)",null,{"$f":"C19+C15+C11","v":0},{"$f":"D19+D15+D11","v":0},{"$f":"E19+E15+E11","v":0}]
[]
[]
["Certifié le ________________\n\nSignature du Candidat                              Signature du Doyen"]

{"sheet":"Listes","index":10,"n_rows":90,"n_cols":5,"rows_kept":90,"cut":false,"hidden":true,"merged":[]}
["[42 - Morphologie et morphogenèse]",null,"PHU",null,"Amiens"]
["4201 - Anatomie",null,"MCU-PH",null,"Angers"]
["4202 - Cytologie et histologie",null,"PU-PH",null,"Besançon"]
["4203 - Anatomie et cytologie pathologiques",null,null,null,"Bordeaux"]
[null,null,null,null,"Brest"]
["[43 - Biophysique et imagerie Médecine]",null,null,null,"Caen"]
["4301 - Biophysique et médecine nucléaire",null,null,null,"Clermont-Ferrand"]
["4302 - Radiologie et imagerie Médecine",null,null,null,"Dijon"]
[null,null,null,null,"Grenoble"]
["[44 - Biochimie, biologie cellulaire et moléculaire, physiologie et nutrition]",null,null,null,"La Réunion"]
["4401 - Biochimie et biologie moléculaire",null,null,null,"Lille"]
["4402 - Physiologie",null,null,null,"Lille Catho"]
["4403 - Biologie cellulaire",null,null,null,"Limoges"]
["4404 - Nutrition",null,null,null,"Lyon"]
[null,null,null,null,"Marseille"]
["[45 - Microbiologie, maladies transmissibles et hygiène]",null,null,null,"Montpellier"]
["4501 - Bactériologie - virologie ; hygiène hospitalière (2 options)",null,null,null,"Nancy"]
["4502 - Parasitologie et mycologie",null,null,null,"Nantes"]
["4302 - Radiologie et imagerie Médecine",null,null,null,"Nice"]
[null,null,null,null,"Paris Cité"]
["[44 - Biochimie, biologie cellulaire et moléculaire, physiologie et nutrition]",null,null,null,"Paris Nord"]
["4401 - Biochimie et biologie moléculaire",null,null,null,"Paris-Est Créteil"]
["4402 - Physiologie",null,null,null,"Paris-Saclay"]
["4403 - Biologie cellulaire",null,null,null,"Pointe à Pitre"]
["4404 - Nutrition",null,null,null,"Poitiers"]
[null,null,null,null,"Reims"]
["[45 - Microbiologie, maladies transmissibles et hygiène]",null,null,null,"Rennes"]
["4501 - Bactériologie - virologie ; hygiène hospitalière (2 options)",null,null,null,"Rouen"]
["4502 - Parasitologie et mycologie",null,null,null,"Saint-Etienne"]
["4503 - Maladies infectieuses ; maladies tropicales (2 options)",null,null,null,"Sorbonne"]
[null,null,null,null,"Strasbourg"]
["[46 - Santé publique, environnement et société]",null,null,null,"Toulouse Purpan"]
["4601 - Epidémiologie, économie de la santé et prévention",null,null,null,"Toulouse Rangueil"]
["4602 - Médecine et santé au travail",null,null,null,"Tours"]
["4603 - Médecine légale et droit de la santé",null,null,null,"Versailles Saint-Quentin"]
["4604 - Biostastistiques, informatique Médicale et technologies de communication"]
[]
["[47 - Cancérologie, génétique, hématologie, immunologie]"]
["4701 - Hématologie ; transfusion (2 options)"]
["4702 - Cancérologie ; radiothérapie (2 options)"]
["4703 - Immunologie"]
["4704 - Génétique"]
[]
["[48 - Anesthésiologie, réanimation, médecine d'urgence, pharmacologie et thérapeutique]"]
["4801 - Anesthésiologie-réanimation ; médecine d'urgence (2 options)"]
["4802 - Réanimation ; médecine d'urgence (2 options)"]
["4803 - Pharmacologie fondamentale ; pharmacologie clinique ; addictologie (3 options)"]
["4804 - Thérapeutique ; médecine d'urgence ; addictologie (3 options)"]
[]
["[49 - Pathologie nerveuse et musculaire, pathologie mentale, handicap et rééducation]"]
["4901 - Neurologie"]
["4902 - Neurochirurgie"]
["4903 - Psychiatrie d'adultes ; addictologie (2 options)"]
["4904 - Pédopsychiatrie ; addictologie (2 options)"]
["4905 - Médecine physique et de réadaptation"]
[]
["[50 - Pathologie ostéo-articulaire, dermatologie et chirurgie plastique]"]
["5001 - Rhumatologie"]
["5002 - Chirurgie orthopédique et traumatologique"]
["5003 - Dermato-vénéréologie"]
["5004 - Chirurgie plastique, reconstructrice et esthétique ; brûlologie (2 options)"]
[]
["[51 - Pathologie cardiorespiratoire et vasculaire]"]
["5101 - Pneumologie ; addictologie (2 options)"]
["5102 - Cardiologie"]
["5103 - Chirurgie thoracique et cardiovasculaire"]
["5104 - Chirurgie vasculaire ; médecine vasculaire (2 options)"]
[]
["[52 - Maladies des appareils digestif et urinaire]"]
["5201 - Gastroentérologie ; hépatologie ; addictologie (3 options)"]
["5202 - Chirurgie digestive"]
["5203 - Néphrologie"]
["5204 - Urologie"]
[]
["[53 - Médecine interne, gériatrie et chirurgie générale]"]
["5301 - Médecine interne ; gériatrie et biologie du vieillissement ; médecine générale ; addictologie (4 options)"]
["5302 - Chirurgie générale"]
["5303 - Médecine générale"]
[]
["[54 - Développement et pathologie de l'enfant, gynécologie-obstétrique, endocrinologie et reproduction]"]
["5401 - Pédiatrie"]
["5402 - Chirurgie infantile"]
["5403 - Gynécologie-obstétrique ; gynécologie Médicale (2 options)"]
["5404 - Endocrinologie, diabète et maladies métaboliques ; gynécologie Médicale (2 options)"]
["5405 - Biologie et médecine du développement et de la reproduction ; gynécologie Médicale (2 options)"]
[]
["[55 - Pathologie de la tête et du cou]"]
["5501 - Oto-rhino-laryngologie"]
["5502 - Ophtalmologie"]
["5503 - Chirurgie maxillo-faciale et stomatologie"]